fUSD/lending_fUSD_20250109
["ID","MTS","AMOUNT","RATE_DAILY","PERIOD"]
[348277705,1736430671290,-500.0,0.00011914,2]
[348277706,1736430671300,-500.0,0.00011914,2]
[348277707,1736430671309,-500.0,0.00011914,2]
[348277708,1736430671319,-1224.14,0.00011915,2]
[348277709,1736430671329,-2077.53,0.00011915,2]
[348277710,1736430671339,-1128.22,0.00011915,2]
[348277711,1736430671349,-500.0,0.00011915,2]
[348277712,1736430671359,-500.0,0.00011915,2]
[348277713,1736430671369,-1094.6,0.00011915,2]
[348277714,1736430671379,-500.0,0.00011915,2]
[348277715,1736430671389,-748.35,0.00011915,2]
[348277716,1736430671399,-901.39,0.00011915,2]
[348277717,1736430671409,-500.0,0.00011915,2]
[348277718,1736430671419,-1388.94,0.00011915,2]
[348277719,1736430671429,-490.71,0.00011916,2]
[348277720,1736430671439,-381.36,0.00011916,2]
[348277721,1736430671449,-1036.84,0.00011916,2]
[348277722,1736430671458,-620.46,0.00011916,2]
[348277723,1736430671468,-500.0,0.00011916,2]
[348277724,1736430671478,-500.0,0.00011916,2]
[348277725,1736430671488,-1387.53,0.00011916,2]
[348277726,1736430671498,-500.0,0.00011916,2]
[348277727,1736430671512,-500.0,0.00011916,2]
[348277728,1736430671524,-500.0,0.00011916,2]
[348277729,1736430671533,-3848.442669,0.00011916,2]
[348277730,1736430671543,-4736.456601,0.00011916,2]
[348277731,1736430671552,-653.12,0.00011916,2]
[348277732,1736430671562,-500.0,0.00011916,2]
[348277733,1736430671571,-500.0,0.00011916,2]
[348277734,1736430671581,-500.0,0.00011916,2]
[348277735,1736430671591,-500.0,0.00011916,2]
[348277736,1736430671601,-500.0,0.00011916,2]
[348277737,1736430671611,-500.0,0.00011916,2]
[348277738,1736430671621,-500.0,0.00011916,2]
[348277739,1736430671630,-500.0,0.00011916,2]
[348277740,1736430671640,-164.97723897,0.00011916,2]
[348277741,1736430671650,-500.0,0.00011916,2]
[348277742,1736430671659,-276.9,0.00011916,2]
[348277743,1736430671669,-500.0,0.00011916,2]
[348277744,1736430671678,-500.0,0.00011916,2]
[348277745,1736430671688,-1661.78,0.00011916,2]
[348277746,1736430671698,-500.0,0.00011916,2]
[348277747,1736430671708,-625.5,0.00011916,2]
[348277748,1736430671718,-315.8,0.00011916,2]
[348277749,1736430671728,-500.0,0.00011916,2]
[348277750,1736430671738,-1647.75,0.00011916,2]
[348277751,1736430671747,-500.0,0.00011916,2]
[348277752,1736430671759,-278.44,0.00011916,2]
[348277753,1736430671769,-500.0,0.00011916,2]
[348277754,1736430671779,-1945.08,0.00011916,2]
[348277755,1736430671788,-500.0,0.00011916,2]
[348277756,1736430671798,-500.0,0.00011916,2]
[348277757,1736430671807,-500.0,0.00011916,2]
[348277758,1736430671818,-500.0,0.00011916,2]
[348277759,1736430671828,-1625.05,0.00011916,2]
[348277760,1736430671881,-500.0,0.00011916,2]
[348277761,1736430671891,-500.0,0.00011916,2]
[348277762,1736430671900,-536.26,0.00011916,2]
[348277763,1736430671910,-500.0,0.00011916,2]
[348277764,1736430671919,-581.18,0.00011916,2]
[348277765,1736430671929,-500.0,0.00011916,2]
[348277766,1736430671939,-500.0,0.00011916,2]
[348277767,1736430671948,-1043.61,0.00011916,2]
[348277768,1736430671958,-441.43,0.00011916,2]
[348277769,1736430671968,-500.0,0.00011916,2]
[348277770,1736430671978,-500.0,0.00011916,2]
[348277771,1736430671987,-500.0,0.00011916,2]
[348277772,1736430671997,-500.0,0.00011916,2]
[348277773,1736430672011,-500.0,0.00011916,2]
[348277774,1736430672020,-404.48,0.00011916,2]
[348277775,1736430672030,-2040.09,0.00011916,2]
[348277776,1736430672040,-500.0,0.00011916,2]
[348277777,1736430672050,-528.62,0.00011916,2]
[348277778,1736430672060,-583.93,0.00011916,2]
[348277779,1736430672072,-500.0,0.00011916,2]
[348277780,1736430672082,-521.24,0.00011916,2]
[348277781,1736430672092,-500.0,0.00011916,2]
[348277782,1736430672103,-500.0,0.00011916,2]
[348277783,1736430672112,-856.5,0.00011916,2]
[348277784,1736430672125,-500.0,0.00011916,2]
[348277785,1736430672135,-255.65,0.00011916,2]
[348277786,1736430672146,-500.0,0.00011916,2]
[348277787,1736430672156,-296.54171857,0.00011916,2]
[348277788,1736430672165,-500.0,0.00011916,2]
[348277789,1736430672174,-861.95,0.00011916,2]
[348277790,1736430672184,-500.0,0.00011916,2]
[348277791,1736430672193,-500.0,0.00011916,2]
[348277792,1736430672202,-500.0,0.00011916,2]
[348277793,1736430672212,-546.82,0.00011916,2]
[348277794,1736430672222,-333.03,0.00011916,2]
[348277795,1736430672231,-1078.14,0.00011916,2]
[348277796,1736430672240,-500.0,0.00011916,2]
[348277797,1736430672249,-500.0,0.00011917,2]
[348277798,1736430672262,-500.0,0.00011917,2]
[348277799,1736430672272,-500.0,0.00011917,2]
[348277800,1736430672281,-510.35,0.00011917,2]
[348277801,1736430672291,-299.36,0.00011917,2]
[348277802,1736430672300,-387.93,0.00011917,2]
[348277803,1736430672310,-892.4,0.00011947,2]
[348277804,1736430672319,-205.0,0.0001197,2]
[348277805,1736430672328,-203.0,0.0001197,2]
[348277806,1736430672338,-298.0,0.0001197,2]
[348277807,1736430672347,-150.0,0.00011982,2]
[348277808,1736430672356,-702.06,0.00012,2]
[348277809,1736430672366,-12000.92742335,0.00012,2]
[348277810,1736430672376,-3588.89302062,0.00012,3]
[348277811,1736430672385,-150.0,0.00012003,2]
[348277812,1736430672395,-150.0,0.00012005,2]
[348277813,1736430672404,-200.0,0.00012055,2]
[348277814,1736430672414,-150.0,0.0001207,2]
[348277815,1736430672424,-150.0,0.00012071,2]
[348277816,1736430672434,-150.0,0.00012091,2]
[348277817,1736430672443,-500.0,0.00012102,2]
[348277818,1736430672453,-500.0,0.00012102,2]
[348277819,1736430672463,-500.0,0.00012102,2]
[348277820,1736430672472,-500.0,0.00012102,2]
[348277821,1736430672482,-500.0,0.00012102,2]
[348277822,1736430672491,-500.0,0.00012102,2]
[348277823,1736430672500,-1180.22,0.00012102,2]
[348277824,1736430672513,-713.58,0.0001211,2]
[348277825,1736430672523,-205.0,0.0001216,2]
[348277826,1736430672532,-203.0,0.0001216,2]
[348277827,1736430672542,-298.0,0.0001216,2]
[348277828,1736430672551,-150.0,0.00012166,2]
[348277829,1736430672561,-500.0,0.00012187,2]
[348277830,1736430672570,-866.57,0.00012187,2]
[348277831,1736430672579,-830.46,0.00012187,2]
[348277832,1736430672588,-585.6,0.00012187,2]
[348277833,1736430672598,-608.97,0.00012187,2]
[348277834,1736430672607,-1143.48,0.00012187,2]
[348277835,1736430672616,-656.62,0.00012187,2]
[348277836,1736430672626,-679.93,0.00012187,2]
[348277837,1736430672635,-500.0,0.00012187,2]
[348277838,1736430672645,-546.23,0.00012187,2]
[348277839,1736430672654,-500.0,0.00012187,2]
[348277840,1736430672663,-654.73,0.00012187,2]
[348277841,1736430672672,-572.86,0.00012187,2]
[348277842,1736430672682,-3338.9,0.00012187,2]
[348277843,1736430672691,-954.74,0.00012187,2]
[348277844,1736430672700,-638.42,0.00012187,2]
[348277845,1736430672708,-500.0,0.00012187,2]
[348277846,1736430672717,-624.19,0.00012187,2]
[348277847,1736430672726,-500.0,0.00012187,2]
[348277848,1736430672736,-500.0,0.00012188,2]
[348277849,1736430672745,-500.0,0.00012188,2]
[348277850,1736430672757,-500.0,0.00012188,2]
[348277851,1736430672766,-1712.31,0.00012188,2]
[348277852,1736430672776,-5701.34,0.00012188,2]
[348277853,1736430672785,-976.92,0.00012188,2]
[348277854,1736430672793,-500.0,0.00012188,2]
[348277855,1736430672802,-500.0,0.00012188,2]
[348277856,1736430672812,-500.0,0.00012188,2]
[348277857,1736430672821,-500.0,0.00012188,2]
[348277858,1736430672830,-1224.14,0.00012189,2]
[348277859,1736430672840,-2077.53,0.00012189,2]
[348277860,1736430672849,-1128.22,0.00012189,2]
[348277861,1736430672859,-500.0,0.00012189,2]
[348277862,1736430672868,-500.0,0.00012189,2]
[348277863,1736430672877,-1094.6,0.00012189,2]
[348277864,1736430672887,-500.0,0.00012189,2]
[348277865,1736430672896,-748.35,0.00012189,2]
[348277866,1736430672905,-901.39,0.00012189,2]
[348277867,1736430672915,-500.0,0.00012189,2]
[348277868,1736430672924,-1388.94,0.00012189,2]
[348277869,1736430672933,-1036.84,0.0001219,2]
[348277870,1736430672943,-500.0,0.0001219,2]
[348277871,1736430672952,-500.0,0.0001219,2]
[348277872,1736430672961,-1387.53,0.0001219,2]
[348277873,1736430672971,-500.0,0.0001219,2]
[348277874,1736430672980,-488.1563657,0.0001219,2]
[348277875,1736430673224,-11.8436343,0.0001219,2]
[348277876,1736430673234,-500.0,0.0001219,2]
[348277877,1736430673243,-424.0553225,0.0001219,2]
[348277878,1736430673255,-683.90000001,0.0001219,2]
[348277879,1736430673266,-271.30840666,0.0001219,2]
[348277880,1736430673276,-584.5466732,0.0001219,2]
[348277881,1736430673358,-500.0,9.997e-05,2]
[348277882,1736430673367,-500.0,0.00010271,2]
[348277883,1736430673377,-500.0,0.00010271,2]
[348277884,1736430673386,-150.0,0.00010658,2]
[348277885,1736430673395,-979.7,0.00010658,2]
[348277886,1736430673405,-437.83,0.00011342,2]
[348277887,1736430673414,-1884.63226663,0.0001219,2]
[348277888,1736430673423,-4736.456601,0.0001219,2]
[348277889,1736430673432,-158.604866,0.0001219,2]
[348277890,1736430673442,-653.12,0.0001219,2]
[348277891,1736430673452,-500.0,0.0001219,2]
[348277892,1736430673462,-500.0,0.0001219,2]
[348277893,1736430673471,-500.0,0.0001219,2]
[348277894,1736430673480,-500.0,0.0001219,2]
[348277895,1736430673490,-500.0,0.0001219,2]
[348277896,1736430673500,-500.0,0.0001219,2]
[348277897,1736430673512,-500.0,0.0001219,2]
[348277898,1736430673522,-500.0,0.0001219,2]
[348277899,1736430673531,-500.0,0.0001219,2]
[348277900,1736430673541,-500.0,0.0001219,2]
[348277901,1736430673551,-500.0,0.0001219,2]
[348277902,1736430673562,-1661.78,0.0001219,2]
[348277903,1736430673573,-500.0,0.0001219,2]
[348277904,1736430673583,-480.38,0.0001219,2]
[348277905,1736430673593,-1647.75,0.0001219,2]
[348277906,1736430673603,-500.0,0.0001219,2]
[348277907,1736430673613,-500.0,0.0001219,2]
[348277908,1736430673624,-1945.08,0.0001219,2]
[348277909,1736430673634,-329.08,0.0001219,2]
[348277910,1736430673644,-500.0,0.0001219,2]
[348277911,1736430673654,-500.0,0.0001219,2]
[348277912,1736430673664,-500.0,0.0001219,2]
[348277913,1736430673674,-1625.05,0.0001219,2]
[348277914,1736430673684,-375.61,0.0001219,2]
[348277915,1736430673693,-500.0,0.0001219,2]
[348277916,1736430673702,-536.26,0.0001219,2]
[348277917,1736430673713,-500.0,0.0001219,2]
[348277918,1736430673723,-500.0,0.0001219,2]
[348277919,1736430673734,-500.0,0.0001219,2]
[348277920,1736430673744,-1043.61,0.0001219,2]
[348277921,1736430673756,-500.0,0.0001219,2]
[348277922,1736430673767,-500.0,0.0001219,2]
[348277923,1736430673776,-500.0,0.0001219,2]
[348277924,1736430673786,-500.0,0.0001219,2]
[348277925,1736430673796,-500.0,0.0001219,2]
[348277926,1736430673806,-2040.09,0.0001219,2]
[348277927,1736430673817,-500.0,0.0001219,2]
[348277928,1736430673827,-528.62,0.0001219,2]
[348277929,1736430673836,-500.0,0.0001219,2]
[348277930,1736430673847,-500.0,0.0001219,2]
[348277931,1736430673856,-262.25,0.0001219,2]
[348277932,1736430673866,-856.5,0.0001219,2]
[348277933,1736430673876,-277.4,0.0001219,2]
[348277934,1736430673887,-500.0,0.0001219,2]
[348277935,1736430673897,-500.0,0.0001219,2]
[348277936,1736430673907,-861.95,0.0001219,2]
[348277937,1736430673917,-500.0,0.0001219,2]
[348277938,1736430673927,-500.0,0.0001219,2]
[348277939,1736430673937,-500.0,0.0001219,2]
[348277940,1736430673947,-546.82,0.0001219,2]
[348277941,1736430673957,-1078.14,0.0001219,2]
[348277942,1736430673967,-522.64,0.0001219,2]
[348277943,1736430673976,-411.18,0.00012191,2]
[348277944,1736430673986,-348.34,0.00012191,2]
[348277945,1736430673996,-500.0,0.00012191,2]
[348277946,1736430674006,-150.0,0.00012191,2]
[348277947,1736430674016,-510.35,0.00012191,2]
[348277948,1736430674027,-9581.77430743,0.000122,2]
[348277949,1736430674037,-500.0,0.00012202,2]
[348277950,1736430674048,-2000.0,0.00012202,2]
[348277951,1736430674059,-200.0,0.00012202,2]
[348277952,1736430674070,-150.0,0.00012206,2]
[348277953,1736430674082,-832.33673703,0.00012296,2]
[348277954,1736430674092,-1679.0311579,0.00012296,2]
[348277955,1736430674102,-6020.5493919,0.00012296,2]
[348277956,1736430674114,-1119.63682782,0.00012299,3]
[348277957,1736430674124,-1119.63682782,0.00012299,3]
[348277958,1736430674134,-1119.63682782,0.00012299,3]
[348277959,1736430674146,-1119.63682782,0.00012299,3]
[348277960,1736430674161,-1119.63682782,0.00012299,3]
[348277961,1736430674181,-1119.6368278,0.00012299,3]
[348277962,1736430674195,-1119.63682782,0.00012299,3]
[348277963,1736430674205,-1100.18237095,0.00012299,3]
[348277964,1736430674216,-1100.18237095,0.00012299,3]
[348277965,1736430674227,-999.0,0.00012299,2]
[348277966,1736430674237,-700833.54560159,0.00012299,4]
[348277967,1736430674577,-500.0,9.996e-05,2]
[348277968,1736430674587,-500.0,9.997e-05,2]
[348277969,1736430674597,-500.0,9.997e-05,2]
[348277970,1736430674607,-500.0,9.998e-05,2]
[348277971,1736430674618,-561.10405347,0.0001027,2]
[348277972,1736430674627,-500.0,0.00010271,2]
[348277973,1736430674637,-500.0,0.00010271,2]
[348277974,1736430674647,-500.0,0.00010272,2]
[348277975,1736430674657,-502.81687659,0.00010545,2]
[348277976,1736430674666,-392.24540261,0.00010545,2]
[348277977,1736430674676,-150.0,0.00010658,2]
[348277978,1736430674686,-437.08,0.00010658,2]
[348277979,1736430674695,-354.0,0.00011587,2]
[348277980,1736430674705,-354.0,0.00011587,2]
[348277981,1736430674714,-1396321.45001483,0.00012299,4]
[348277982,1736430674724,-99460.57903776,0.000123,2]
[348277983,1736430674737,-3921.81580609,0.000123,2]
[348277984,1736430674748,-428.27040096,0.000123,2]
[348277985,1736430674763,-2018.50135938,0.000123,2]
[348277986,1736430674775,-565.12456011,0.000123,2]
[348277987,1736430674787,-1120.07727721,0.000123,2]
[348277988,1736430674798,-1632.90592001,0.000123,2]
[348277989,1736430674810,-802.15906088,0.000123,2]
[348277990,1736430674885,-94892.63902982,0.000123,2]
[348277991,1736430674898,-18773.19999915,0.000123,2]
[348277992,1736430674910,-3253.2053238,0.000123,2]
[348277993,1736430674922,-85306.0943926,0.000123,2]
[348277994,1736430674937,-218198.89412947,0.000123,2]
[348277995,1736430674982,-500.0,9.998e-05,2]
[348277996,1736430674992,-39.2883703,0.000123,2]
[348277998,1736431268562,598.82,8.219e-05,2]
[348277999,1736431386021,-569.85,0.00012,10]
[348278000,1736431413774,-500.0,0.00013699,13]
[348278001,1736431413804,-500.0,0.00013699,13]
[348278002,1736431413832,-500.0,0.00013699,13]
[348278003,1736431413860,-500.0,0.00013699,13]
[348278004,1736431413891,-500.0,0.00013699,13]
[348278005,1736431413920,-500.0,0.00013699,13]
[348278006,1736431413949,-500.0,0.00013699,13]
[348278007,1736431413977,-500.0,0.00013699,13]
[348278008,1736431414005,-430.0,0.00013699,13]
[348278009,1736431427795,-70.0,0.00013699,13]
[348278010,1736431427824,-500.0,0.00013699,13]
[348278011,1736431427852,-500.0,0.00013699,13]
[348278012,1736431427882,-500.0,0.00013699,13]
[348278013,1736431427908,-500.0,0.00013699,13]
[348278014,1736431427935,-430.0,0.00013699,13]
[348278016,1736431431091,-500.0,0.00013699,13]
[348278017,1736431431135,-500.0,0.00013699,13]
[348278018,1736431431165,-500.0,0.00013699,13]
[348278019,1736431431192,-500.0,0.00013699,13]
[348278020,1736431431219,-500.0,0.00013699,13]
[348278021,1736431440812,-500.0,0.00013699,13]
[348278022,1736431440842,-500.0,0.00013699,13]
[348278194,1736431542617,-1584.51,0.000146,31]
[348278195,1736431542648,-1415.49,0.000146,31]
[348278196,1736431545123,-169.02,0.000146,31]
[348278197,1736431545155,-1584.51,0.000146,31]
[348278198,1736431545187,-1246.47,0.000146,31]
[348278199,1736431549199,-338.04,0.000146,31]
[348278200,1736431549234,-1584.51,0.000146,31]
[348278201,1736431549265,-1077.45,0.000146,31]
[348278324,1736431552924,-507.06,0.000146,31]
[348278325,1736431552955,-1492.94,0.000146,31]
[348278327,1736431573623,775.0,0.0002,120]
[348278606,1736431832140,-1028.59846434,8.682e-05,2]
[348278610,1736431832152,-282.6,8.682e-05,2]
[348278622,1736431832908,-393.04398086,8.682e-05,2]
[348278623,1736431832920,-678.3975548,8.682e-05,2]
[348278624,1736431832929,-244.3342252,9.337e-05,2]
[348278625,1736431832940,-526.8666,9.337e-05,2]
[348278626,1736431832951,-311.34434124,9.337e-05,2]
[348278627,1736431832963,-3126.4045141,9.337e-05,2]
[348278628,1736431832977,-12016.73276492,9.337e-05,2]
[348278668,1736431838084,-446.79742223,9.337e-05,2]
[348278674,1736431838097,-7227.52013231,9.337e-05,2]
[348278677,1736431838106,-594.87286306,9.338e-05,2]
[348278680,1736431838116,-402.85,9.388e-05,2]
[348278683,1736431838126,-594.29,9.554e-05,2]
[348278685,1736431838136,-250.0,9.62e-05,2]
[348278687,1736431838145,-250.0,9.738e-05,2]
[348278688,1736431838155,-250.0,9.816e-05,2]
[348278689,1736431838163,-561.65,9.872e-05,2]
[348278690,1736431838173,-802.00825177,9.897e-05,2]
[348278691,1736431838184,-2342.98044823,9.897e-05,2]
[348278692,1736431838194,-168.71,9.925e-05,2]
[348278693,1736431838203,-616.25710333,9.971e-05,2]
[348278694,1736431838212,-616.25710333,9.975e-05,2]
[348278695,1736431838225,-616.25710333,9.976e-05,2]
[348278696,1736431838235,-246.245,9.977e-05,2]
[348278697,1736431838245,-200.0,9.979e-05,2]
[348278698,1736431838255,-246.245,9.979e-05,2]
[348278699,1736431838264,-246.245,9.98e-05,2]
[348278700,1736431838274,-246.245,9.98e-05,2]
[348278701,1736431838283,-246.245,9.988e-05,2]
[348278702,1736431838293,-246.245,9.988e-05,2]
[348278703,1736431838302,-223.22689966,9.989e-05,2]
[348278704,1736431838582,-393.03020367,9.989e-05,2]
[348278705,1736431838592,-576.95589633,9.995e-05,2]
[348278706,1736431838604,-39.301207,9.995e-05,2]
[348278707,1736431838614,-150.0,9.995e-05,2]
[348278708,1736431838623,-616.25710333,9.996e-05,2]
[348278709,1736431838633,-500.0,9.996e-05,2]
[348278710,1736431838642,-531.78,9.996e-05,2]
[348278711,1736431838652,-500.0,9.996e-05,2]
[348278712,1736431838661,-474.45412547,9.996e-05,2]
[348278713,1736431838673,-25.54587453,9.996e-05,2]
[348278714,1736431838683,-500.0,9.996e-05,2]
[348278715,1736431838692,-500.0,9.996e-05,2]
[348278716,1736431838702,-500.0,9.996e-05,2]
[348278717,1736431838712,-500.0,9.996e-05,2]
[348278718,1736431838722,-613.46,9.996e-05,2]
[348278719,1736431838732,-500.0,9.996e-05,2]
[348278720,1736431838741,-534.58,9.996e-05,2]
[348278721,1736431838750,-51.61412572,9.996e-05,2]
[348278722,1736431838761,-448.38587428,9.996e-05,2]
[348278723,1736431838771,-627.95,9.996e-05,2]
[348278724,1736431838781,-500.0,9.996e-05,2]
[348278725,1736431838791,-500.0,9.996e-05,2]
[348278726,1736431838800,-500.0,9.996e-05,2]
[348278727,1736431838809,-500.0,9.996e-05,2]
[348278728,1736431838819,-500.0,9.996e-05,2]
[348278729,1736431838828,-500.0,9.996e-05,2]
[348278730,1736431838837,-500.0,9.996e-05,2]
[348278731,1736431838847,-500.0,9.996e-05,2]
[348278732,1736431838856,-500.0,9.996e-05,2]
[348278733,1736431838865,-304.082893,9.996e-05,2]
[348278734,1736431838875,-64.23180669,9.996e-05,2]
[348278735,1736431838887,-435.76819331,9.996e-05,2]
[348278736,1736431838897,-500.0,9.996e-05,2]
[348278737,1736431838906,-500.0,9.996e-05,2]
[348278738,1736431838915,-500.0,9.996e-05,2]
[348278739,1736431838924,-500.0,9.996e-05,2]
[348278740,1736431838933,-500.0,9.996e-05,2]
[348278741,1736431838943,-500.0,9.996e-05,2]
[348278742,1736431838952,-470.70672726,9.996e-05,2]
[348278743,1736431838965,-29.29327274,9.996e-05,2]
[348278744,1736431838977,-500.0,9.996e-05,2]
[348278745,1736431838986,-393.41467466,9.996e-05,2]
[348278746,1736431838997,-106.58532534,9.996e-05,2]
[348278747,1736431839007,-500.0,9.996e-05,2]
[348278750,1736431839016,-500.0,9.996e-05,2]
[348278752,1736431839024,-500.0,9.996e-05,2]
[348278754,1736431839034,-500.0,9.996e-05,2]
[348278755,1736431839043,-500.0,9.996e-05,2]
[348278756,1736431839051,-500.0,9.996e-05,2]
[348278757,1736431839060,-500.0,9.996e-05,2]
[348278759,1736431839069,-500.0,9.996e-05,2]
[348278761,1736431839078,-500.0,9.996e-05,2]
[348278763,1736431839088,-500.0,9.996e-05,2]
[348278764,1736431839097,-500.0,9.996e-05,2]
[348278765,1736431839106,-500.0,9.996e-05,2]
[348278766,1736431839116,-500.0,9.996e-05,2]
[348278767,1736431839126,-500.0,9.996e-05,2]
[348278768,1736431839135,-500.0,9.996e-05,2]
[348278769,1736431839145,-500.0,9.996e-05,2]
[348278770,1736431839155,-500.0,9.996e-05,2]
[348278771,1736431839164,-500.0,9.996e-05,2]
[348278772,1736431839173,-500.0,9.996e-05,2]
[348278773,1736431839182,-500.0,9.996e-05,2]
[348278774,1736431839191,-500.0,9.996e-05,2]
[348278775,1736431839200,-500.0,9.996e-05,2]
[348278776,1736431839209,-500.0,9.996e-05,2]
[348278777,1736431839219,-500.0,9.996e-05,2]
[348278778,1736431839231,-218.32773574,9.996e-05,2]
[348278779,1736431839240,-500.0,9.996e-05,2]
[348278781,1736431839249,-500.0,9.996e-05,2]
[348278783,1736431839259,-500.0,9.996e-05,2]
[348278785,1736431839268,-500.0,9.996e-05,2]
[348278787,1736431839277,-978.97,9.996e-05,2]
[348278789,1736431839287,-500.0,9.996e-05,2]
[348278791,1736431839296,-500.0,9.996e-05,2]
[348278793,1736431839305,-500.0,9.996e-05,2]
[348278795,1736431839315,-500.0,9.996e-05,2]
[348278797,1736431839324,-500.0,9.996e-05,2]
[348278799,1736431839333,-500.0,9.996e-05,2]
[348278800,1736431839342,-500.0,9.996e-05,2]
[348278802,1736431839351,-500.0,9.996e-05,2]
[348278804,1736431839361,-500.0,9.996e-05,2]
[348278806,1736431839370,-500.0,9.996e-05,2]
[348278808,1736431839380,-500.0,9.996e-05,2]
[348278810,1736431839389,-500.0,9.996e-05,2]
[348278811,1736431839399,-500.0,9.996e-05,2]
[348278812,1736431839411,-500.0,9.996e-05,2]
[348278813,1736431839420,-500.0,9.996e-05,2]
[348278814,1736431839430,-500.0,9.996e-05,2]
[348278815,1736431839635,-500.0,9.996e-05,2]
[348278816,1736431839644,-236.76108063,9.996e-05,2]
[348278817,1736431839657,-263.23891937,9.996e-05,2]
[348278818,1736431839668,-500.0,9.996e-05,2]
[348278819,1736431839680,-500.0,9.996e-05,2]
[348278820,1736431839690,-500.0,9.996e-05,2]
[348278821,1736431839699,-500.0,9.996e-05,2]
[348278822,1736431839709,-500.0,9.996e-05,2]
[348278823,1736431839718,-500.0,9.996e-05,2]
[348278824,1736431839729,-500.0,9.996e-05,2]
[348278825,1736431839738,-500.0,9.996e-05,2]
[348278826,1736431839747,-500.0,9.996e-05,2]
[348278827,1736431839757,-500.0,9.996e-05,2]
[348278828,1736431839766,-500.0,9.996e-05,2]
[348278829,1736431839775,-500.0,9.996e-05,2]
[348278830,1736431839785,-500.0,9.996e-05,2]
[348278831,1736431839794,-500.0,9.996e-05,2]
[348278832,1736431839803,-500.0,9.996e-05,2]
[348278833,1736431839812,-500.0,9.996e-05,2]
[348278834,1736431839822,-500.0,9.996e-05,2]
[348278835,1736431839831,-500.0,9.996e-05,2]
[348278836,1736431839841,-500.0,9.996e-05,2]
[348278837,1736431839850,-500.0,9.996e-05,2]
[348278838,1736431839859,-281.25388017,9.996e-05,2]
[348278839,1736431839871,-218.74611983,9.996e-05,2]
[348278840,1736431839880,-500.0,9.996e-05,2]
[348278841,1736431839890,-500.0,9.996e-05,2]
[348278842,1736431839899,-500.0,9.996e-05,2]
[348278843,1736431839909,-500.0,9.996e-05,2]
[348278844,1736431839918,-500.0,9.996e-05,2]
[348278845,1736431839927,-500.0,9.996e-05,2]
[348278846,1736431839936,-500.0,9.996e-05,2]
[348278847,1736431839945,-500.0,9.996e-05,2]
[348278848,1736431839954,-500.0,9.996e-05,2]
[348278849,1736431839963,-500.0,9.996e-05,2]
[348278850,1736431839974,-500.0,9.996e-05,2]
[348278851,1736431839984,-500.0,9.996e-05,2]
[348278852,1736431839993,-500.0,9.996e-05,2]
[348278853,1736431840002,-500.0,9.996e-05,2]
[348278854,1736431840011,-500.0,9.996e-05,2]
[348278855,1736431840021,-500.0,9.996e-05,2]
[348278856,1736431840031,-500.0,9.996e-05,2]
[348278857,1736431840040,-500.0,9.996e-05,2]
[348278858,1736431840049,-500.0,9.996e-05,2]
[348278859,1736431840059,-500.0,9.996e-05,2]
[348278860,1736431840070,-500.0,9.996e-05,2]
[348278861,1736431840083,-500.0,9.996e-05,2]
[348278862,1736431840093,-500.0,9.996e-05,2]
[348278863,1736431840102,-500.0,9.996e-05,2]
[348278865,1736431840112,-488.7481295,9.996e-05,2]
[348278867,1736431840121,-500.0,9.996e-05,2]
[348278868,1736431840130,-500.0,9.996e-05,2]